[Event "*** SCC Grand Prix: Titled Tuesday Blitz"]
[Site "Chess.com"]
[Date "2020.10.06"]
[Round "1"]
[White "Reader777"]
[Black "barbara25"]
[Result "1-0"]
[WhiteElo "2653"]
[BlackElo "2328"]
[TimeControl "180+1"]
[EndTime "10:10:04 PDT"]
[Termination "Reader777 won by resignation"]

1. d4 {[%clk 0:03:00.9]} 1... Nf6 {[%clk 0:02:58]} 2. c4 {[%clk 0:03:00.9]} 2...
e6 {[%clk 0:02:58.2]} 3. g3 {[%clk 0:03:00.5]} 3... d5 {[%clk 0:02:55.8]} 4. Bg2
{[%clk 0:03:00.5]} 4... c6 {[%clk 0:02:55.6]} 5. Nf3 {[%clk 0:02:58.9]} 5... Be7
{[%clk 0:02:55.7]} 6. O-O {[%clk 0:02:58.8]} 6... O-O {[%clk 0:02:56]} 7. Nc3
{[%clk 0:02:59.5]} 7... Nbd7 {[%clk 0:02:54.7]} 8. Qd3 {[%clk 0:02:58.6]} 8...
b6 {[%clk 0:02:54.5]} 9. e4 {[%clk 0:02:58.2]} 9... Bb7 {[%clk 0:02:53.4]} 10.
e5 {[%clk 0:02:49.6]} 10... Ne8 {[%clk 0:02:52.8]} 11. b3 {[%clk 0:02:49.2]}
11... Rc8 {[%clk 0:02:52.2]} 12. Rd1 {[%clk 0:02:47.7]} 12... g6 {[%clk
0:02:52.1]} 13. h4 {[%clk 0:02:36.2]} 13... Ng7 {[%clk 0:02:51.1]} 14. Bg5
{[%clk 0:02:35.1]} 14... Bxg5 {[%clk 0:02:48.4]} 15. hxg5 {[%clk 0:02:34.2]}
15... Qe7 {[%clk 0:02:44.6]} 16. Ne2 {[%clk 0:02:15.6]} 16... Rfd8 {[%clk
0:02:44.4]} 17. Rac1 {[%clk 0:02:08.1]} 17... c5 {[%clk 0:02:41.1]} 18. cxd5
{[%clk 0:02:07.2]} 18... Bxd5 {[%clk 0:02:40.1]} 19. Nf4 {[%clk 0:02:05.6]}
19... Bb7 {[%clk 0:02:35.3]} 20. d5 {[%clk 0:01:54.8]} 20... exd5 {[%clk
0:02:34.8]} 21. Nxd5 {[%clk 0:01:54.9]} 21... Bxd5 {[%clk 0:02:35.2]} 22. Qxd5
{[%clk 0:01:55.5]} 22... Nf8 {[%clk 0:02:35.6]} 23. Qc4 {[%clk 0:01:49.1]} 23...
Nfe6 {[%clk 0:02:35.2]} 24. Bh3 {[%clk 0:01:46.5]} 24... Rxd1+ {[%clk
0:02:35.1]} 25. Rxd1 {[%clk 0:01:46.2]} 25... Rd8 {[%clk 0:02:35.6]} 26. Rxd8+
{[%clk 0:01:42.6]} 26... Qxd8 {[%clk 0:02:36.5]} 27. Qa6 {[%clk 0:01:25.7]}
27... Qd7 {[%clk 0:02:34.7]} 28. Kg2 {[%clk 0:01:20.3]} 28... Qc7 {[%clk
0:02:25.9]} 29. Qb5 {[%clk 0:01:17.8]} 29... Qb7 {[%clk 0:02:20.9]} 30. Qd3
{[%clk 0:01:07.9]} 30... Nd4 {[%clk 0:02:13.2]} 31. Bg4 {[%clk 0:01:04.6]} 31...
Nge6 {[%clk 0:02:12.6]} 32. Kg1 {[%clk 0:01:01.7]} 32... Nxf3+ {[%clk 0:02:08]}
33. Bxf3 {[%clk 0:01:01.8]} 33... Qc7 {[%clk 0:02:08]} 34. Qe3 {[%clk
0:01:01.1]} 34... Qd8 {[%clk 0:02:06.1]} 35. Be2 {[%clk 0:00:56.7]} 35... Qxg5
{[%clk 0:02:03.8]} 36. f4 {[%clk 0:00:56]} 36... Qf5 {[%clk 0:01:59.7]} 37. Bd3
{[%clk 0:00:56.1]} 37... Qg4 {[%clk 0:01:59.5]} 38. Be2 {[%clk 0:00:56.1]} 38...
Qh3 {[%clk 0:01:39.3]} 39. Bf1 {[%clk 0:00:55.8]} 39... Qh6 {[%clk 0:01:07.1]}
40. Qe4 {[%clk 0:00:53.2]} 40... Qf8 {[%clk 0:01:05.2]} 41. Qb7 {[%clk
0:00:50.8]} 41... Qd8 {[%clk 0:01:03.9]} 42. Bc4 {[%clk 0:00:49.9]} 42... Qd4+
{[%clk 0:01:03.2]} 43. Kg2 {[%clk 0:00:49.9]} 43... Qd2+ {[%clk 0:01:00]} 44.
Kh3 {[%clk 0:00:46.7]} 44... Qd1 {[%clk 0:00:33.7]} 45. Bxe6 {[%clk 0:00:44.3]}
45... fxe6 {[%clk 0:00:33]} 46. Qb8+ {[%clk 0:00:37.7]} 46... Kg7 {[%clk
0:00:32.3]} 47. Qxa7+ {[%clk 0:00:37.6]} 47... Kh6 {[%clk 0:00:31.6]} 48. Qa8
{[%clk 0:00:28.1]} 48... Kh5 {[%clk 0:00:28.8]} 49. Qg2 {[%clk 0:00:22.1]} 49...
Qg4+ {[%clk 0:00:20.2]} 50. Kh2 {[%clk 0:00:22.3]} 50... Kh6 {[%clk 0:00:20.1]}
51. Qd2 {[%clk 0:00:21]} 51... Kh5 {[%clk 0:00:19.3]} 52. Kg2 {[%clk 0:00:19.9]}
52... Qf5 {[%clk 0:00:18.6]} 53. Qe2+ {[%clk 0:00:19]} 53... Kh6 {[%clk
0:00:18.6]} 54. Qf3 {[%clk 0:00:16.3]} 54... Qc2+ {[%clk 0:00:18.2]} 55. Kh3
{[%clk 0:00:15.8]} 55... Qc1 {[%clk 0:00:17.5]} 56. g4 {[%clk 0:00:14.6]} 56...
Kg7 {[%clk 0:00:17.1]} 57. Qb7+ {[%clk 0:00:14]} 57... Kg8 {[%clk 0:00:15.6]}
58. Qc8+ {[%clk 0:00:14]} 58... Kg7 {[%clk 0:00:15.6]} 59. Qd7+ {[%clk
0:00:14.3]} 59... Kf8 {[%clk 0:00:13.2]} 60. Qd6+ {[%clk 0:00:13.6]} 60... Kf7
{[%clk 0:00:12.9]} 61. Qd7+ {[%clk 0:00:13.6]} 61... Kf8 {[%clk 0:00:12.8]} 62.
Qd8+ {[%clk 0:00:09.3]} 62... Kf7 {[%clk 0:00:12.9]} 63. Qf6+ {[%clk 0:00:09.3]}
63... Kg8 {[%clk 0:00:11.4]} 64. Qxe6+ {[%clk 0:00:10.1]} 64... Kg7 {[%clk
0:00:11.5]} 65. Qf6+ {[%clk 0:00:10.4]} 65... Kg8 {[%clk 0:00:11.5]} 66. Qd8+
{[%clk 0:00:09.5]} 66... Kg7 {[%clk 0:00:11.5]} 67. Qd7+ {[%clk 0:00:09.7]}
67... Kg8 {[%clk 0:00:10.6]} 68. Qd5+ {[%clk 0:00:09.7]} 68... Kg7 {[%clk
0:00:10.4]} 69. Qf3 {[%clk 0:00:10.3]} 69... Qe1 {[%clk 0:00:09.1]} 70. Kg2
{[%clk 0:00:09.2]} 70... Qd2+ {[%clk 0:00:09.1]} 71. Qf2 {[%clk 0:00:09.3]}
71... Qd5+ {[%clk 0:00:09.2]} 72. Kg3 {[%clk 0:00:09.6]} 72... Qe4 {[%clk
0:00:08.8]} 73. Qd2 {[%clk 0:00:07.6]} 73... Qh1 {[%clk 0:00:05.1]} 74. f5
{[%clk 0:00:05.8]} 74... Qg1+ {[%clk 0:00:04.7]} 75. Kf3 {[%clk 0:00:05.7]}
75... Qf1+ {[%clk 0:00:04.8]} 76. Qf2 {[%clk 0:00:05.9]} 76... Qd3+ {[%clk
0:00:04.7]} 77. Kg2 {[%clk 0:00:05.6]} 77... Qd5+ {[%clk 0:00:04.4]} 78. Qf3
{[%clk 0:00:05.5]} 78... Qxe5 {[%clk 0:00:04.5]} 79. fxg6 {[%clk 0:00:04.3]}
79... hxg6 {[%clk 0:00:04]} 80. Qb7+ {[%clk 0:00:04.3]} 80... Kh6 {[%clk
0:00:03.7]} 81. Qxb6 {[%clk 0:00:03.9]} 81... Qe4+ {[%clk 0:00:03.9]} 82. Kf2
{[%clk 0:00:03.8]} 82... Qf4+ {[%clk 0:00:03.6]} 83. Ke1 {[%clk 0:00:04.1]}
83... Qe3+ {[%clk 0:00:03.5]} 84. Kd1 {[%clk 0:00:04.1]} 84... Qd3+ {[%clk
0:00:03.8]} 85. Kc1 {[%clk 0:00:04.4]} 85... Qc3+ {[%clk 0:00:04.1]} 86. Kb1
{[%clk 0:00:04.8]} 86... Kg5 {[%clk 0:00:03.9]} 87. Qe6 {[%clk 0:00:03.9]} 87...
Qd3+ {[%clk 0:00:02.8]} 88. Kb2 {[%clk 0:00:04.2]} 88... Qd4+ {[%clk 0:00:02.9]}
89. Kc2 {[%clk 0:00:04.6]} 89... Qf2+ {[%clk 0:00:02.2]} 90. Kd3 {[%clk
0:00:04.6]} 90... Qd4+ {[%clk 0:00:02.8]} 91. Ke2 {[%clk 0:00:04.4]} 91... Qxg4+
{[%clk 0:00:02.5]} 92. Qxg4+ {[%clk 0:00:04.2]} 92... Kxg4 {[%clk 0:00:03.4]}
93. a4 {[%clk 0:00:04.9]} 93... Kf5 {[%clk 0:00:03.7]} 94. a5 {[%clk 0:00:05.2]}
94... Ke6 {[%clk 0:00:03.9]} 95. a6 {[%clk 0:00:05.6]} 95... Kd7 {[%clk
0:00:04.2]} 96. a7 {[%clk 0:00:05.9]} 96... Kc7 {[%clk 0:00:05.1]} 97. a8=Q
{[%clk 0:00:05.8]} 1-0

[Event "*** SCC Grand Prix: Titled Tuesday Blitz"]
[Site "Chess.com"]
[Date "2020.10.06"]
[Round "2"]
[White "KyrgyzFighter"]
[Black "tmr88"]
[Result "1-0"]
[WhiteElo "2389"]
[BlackElo "2078"]
[TimeControl "180+1"]
[EndTime "10:12:35 PDT"]
[Termination "KyrgyzFighter won by resignation"]

1. c4 {[%clk 0:03:00.9]} 1... e5 {[%clk 0:02:59]} 2. Nc3 {[%clk 0:02:59.2]} 2...
Nf6 {[%clk 0:02:59.5]} 3. Nf3 {[%clk 0:02:59]} 3... g6 {[%clk 0:02:59.8]} 4.
Nxe5 {[%clk 0:02:58.2]} 4... Bg7 {[%clk 0:02:58.6]} 5. d4 {[%clk 0:02:55.7]}
5... O-O {[%clk 0:02:58.8]} 6. g3 {[%clk 0:02:55.8]} 6... d6 {[%clk 0:02:58.1]}
7. Nf3 {[%clk 0:02:50]} 7... Nc6 {[%clk 0:02:58.6]} 8. Bg2 {[%clk 0:02:50]} 8...
Bg4 {[%clk 0:02:57.3]} 9. O-O {[%clk 0:02:50.3]} 9... Qd7 {[%clk 0:02:56.4]} 10.
d5 {[%clk 0:02:45.9]} 10... Ne7 {[%clk 0:02:50.9]} 11. Nd4 {[%clk 0:02:38.3]}
11... Bh3 {[%clk 0:02:46.6]} 12. Bg5 {[%clk 0:02:31.5]} 12... Bxg2 {[%clk
0:02:40.5]} 13. Kxg2 {[%clk 0:02:32.4]} 13... Qg4 {[%clk 0:02:35.4]} 14. Bxf6
{[%clk 0:02:18.2]} 14... Bxf6 {[%clk 0:02:33.5]} 15. e4 {[%clk 0:02:15.8]} 15...
Bxd4 {[%clk 0:02:25]} 16. Qxg4 {[%clk 0:02:14.9]} 16... Nf5 {[%clk 0:02:25.5]}
17. exf5 {[%clk 0:02:13.1]} 1-0

[Event "*** SCC Grand Prix: Titled Tuesday Blitz"]
[Site "Chess.com"]
[Date "2020.10.06"]
[Round "2"]
[White "MidnightFox"]
[Black "LiamVrolijk"]
[Result "0-1"]
[WhiteElo "2360"]
[BlackElo "2816"]
[TimeControl "180+1"]
[EndTime "10:12:37 PDT"]
[Termination "LiamVrolijk won by resignation"]

1. e4 {[%clk 0:03:00.9]} 1... Nf6 {[%clk 0:02:58.3]} 2. e5 {[%clk 0:02:56.3]}
2... Nd5 {[%clk 0:02:58.4]} 3. d4 {[%clk 0:02:54.6]} 3... d6 {[%clk 0:02:58.5]}
4. Nf3 {[%clk 0:02:54.8]} 4... g6 {[%clk 0:02:57.8]} 5. Bc4 {[%clk 0:02:52.3]}
5... Nb6 {[%clk 0:02:57.9]} 6. Bb3 {[%clk 0:02:52.8]} 6... Bg7 {[%clk 0:02:58]}
7. Qe2 {[%clk 0:02:52.1]} 7... Nc6 {[%clk 0:02:55.5]} 8. h3 {[%clk 0:02:49.9]}
8... dxe5 {[%clk 0:02:51.9]} 9. dxe5 {[%clk 0:02:50.8]} 9... Nd4 {[%clk
0:02:51]} 10. Nxd4 {[%clk 0:02:50.3]} 10... Qxd4 {[%clk 0:02:51.9]} 11. f4
{[%clk 0:02:47.5]} 11... O-O {[%clk 0:02:49.1]} 12. Nc3 {[%clk 0:02:46.3]} 12...
Be6 {[%clk 0:02:34]} 13. Bd2 {[%clk 0:02:44.4]} 13... Bxb3 {[%clk 0:02:26.3]}
14. axb3 {[%clk 0:02:45.3]} 14... a5 {[%clk 0:02:25.7]} 15. Qe3 {[%clk
0:02:31.4]} 15... Qd7 {[%clk 0:02:23.6]} 16. O-O {[%clk 0:02:28.4]} 16... Rfd8
{[%clk 0:02:22.2]} 17. Rad1 {[%clk 0:02:27.4]} 17... a4 {[%clk 0:02:21.3]} 18.
bxa4 {[%clk 0:02:26.3]} 18... Nc4 {[%clk 0:02:21.2]} 0-1

[Event "*** SCC Grand Prix: Titled Tuesday Blitz"]
[Site "Chess.com"]
[Date "2020.10.06"]
[Round "2"]
[White "olksuna"]
[Black "Irishchessman16"]
[Result "1-0"]
[WhiteElo "2620"]
[BlackElo "2333"]
[TimeControl "180+1"]
[EndTime "10:13:03 PDT"]
[Termination "olksuna won by resignation"]

1. e4 {[%clk 0:03:00.9]} 1... c5 {[%clk 0:02:54.6]} 2. Nf3 {[%clk 0:03:00.8]}
2... Nc6 {[%clk 0:02:54]} 3. d4 {[%clk 0:02:59.6]} 3... cxd4 {[%clk 0:02:48.2]}
4. Nxd4 {[%clk 0:03:00.5]} 4... Nf6 {[%clk 0:02:48.4]} 5. Nc3 {[%clk 0:03:00.2]}
5... e5 {[%clk 0:02:48.9]} 6. Nf5 {[%clk 0:03:00.1]} 6... d5 {[%clk 0:02:46]} 7.
exd5 {[%clk 0:02:58.8]} 7... Bxf5 {[%clk 0:02:42]} 8. dxc6 {[%clk 0:02:59.1]}
8... Qxd1+ {[%clk 0:02:42]} 9. Nxd1 {[%clk 0:02:58.4]} 9... bxc6 {[%clk
0:02:37.9]} 10. Ne3 {[%clk 0:02:58.2]} 10... Be6 {[%clk 0:02:37.8]} 11. Nc4
{[%clk 0:02:49]} 11... Rb8 {[%clk 0:02:21.5]} 12. Nxe5 {[%clk 0:02:44.9]} 12...
Bb4+ {[%clk 0:02:18.1]} 13. c3 {[%clk 0:02:42.3]} 13... Bd6 {[%clk 0:02:17.4]}
14. Nc4 {[%clk 0:02:37.9]} 14... Bc7 {[%clk 0:02:14.5]} 15. Be2 {[%clk
0:02:34.5]} 15... h5 {[%clk 0:02:09.3]} 16. O-O {[%clk 0:02:32.3]} 16... Ng4
{[%clk 0:02:09.3]} 17. h3 {[%clk 0:02:29.8]} 17... Ne5 {[%clk 0:02:08.4]} 18.
Nxe5 {[%clk 0:02:25.5]} 18... Bxe5 {[%clk 0:02:09.3]} 19. Re1 {[%clk 0:02:26.3]}
19... f6 {[%clk 0:02:08.7]} 20. f4 {[%clk 0:02:24.5]} 20... Bd6 {[%clk
0:02:01.9]} 21. Bc4 {[%clk 0:02:24.2]} 1-0

[Event "*** SCC Grand Prix: Titled Tuesday Blitz"]
[Site "Chess.com"]
[Date "2020.10.06"]
[Round "2"]
[White "Superfelix"]
[Black "queen_iryna"]
[Result "0-1"]
[WhiteElo "2458"]
[BlackElo "2307"]
[TimeControl "180+1"]
[EndTime "10:14:17 PDT"]
[Termination "queen_iryna won by resignation"]

1. e4 {[%clk 0:03:00.9]} 1... d6 {[%clk 0:02:58.9]} 2. d4 {[%clk 0:03:00.8]}
2... Nf6 {[%clk 0:02:59.5]} 3. Nc3 {[%clk 0:03:01.3]} 3... e5 {[%clk 0:02:59.9]}
4. Nf3 {[%clk 0:03:01.1]} 4... Nbd7 {[%clk 0:02:59.3]} 5. Bc4 {[%clk 0:03:01.7]}
5... Be7 {[%clk 0:02:59]} 6. a4 {[%clk 0:03:02.2]} 6... O-O {[%clk 0:02:58.7]}
7. O-O {[%clk 0:03:02.7]} 7... c6 {[%clk 0:02:59.1]} 8. Re1 {[%clk 0:03:03]}
8... h6 {[%clk 0:02:59.4]} 9. Ba2 {[%clk 0:03:02.5]} 9... Re8 {[%clk 0:02:59.1]}
10. h3 {[%clk 0:03:01.1]} 10... Bf8 {[%clk 0:02:58.6]} 11. dxe5 {[%clk
0:03:01.2]} 11... dxe5 {[%clk 0:02:54.7]} 12. Nh4 {[%clk 0:03:01.4]} 12... Nc5
{[%clk 0:02:42]} 13. Qf3 {[%clk 0:03:00.4]} 13... Be6 {[%clk 0:02:36.1]} 14. Nf5
{[%clk 0:02:59.2]} 14... Bxa2 {[%clk 0:02:19.8]} 15. Rxa2 {[%clk 0:03:00.1]}
15... Ne6 {[%clk 0:02:18.2]} 16. Qg3 {[%clk 0:02:59.6]} 16... Kh7 {[%clk
0:02:13.8]} 17. Qxe5 {[%clk 0:02:55.2]} 17... g6 {[%clk 0:01:55]} 18. Rd1 {[%clk
0:02:47.2]} 18... Nd7 {[%clk 0:01:29]} 19. Nd6 {[%clk 0:02:04]} 19... Nxe5
{[%clk 0:01:23.7]} 20. Nxf7 {[%clk 0:01:57.5]} 20... Qf6 {[%clk 0:01:16.3]} 21.
Nxe5 {[%clk 0:01:52.9]} 21... Qxe5 {[%clk 0:01:16.2]} 0-1

[Event "*** SCC Grand Prix: Titled Tuesday Blitz"]
[Site "Chess.com"]
[Date "2020.10.06"]
[Round "2"]
[White "Zq1"]
[Black "emiliocordova"]
[Result "0-1"]
[WhiteElo "2518"]
[BlackElo "2781"]
[TimeControl "180+1"]
[EndTime "10:14:24 PDT"]
[Termination "emiliocordova won by resignation"]

1. d4 {[%clk 0:03:00.9]} 1... Nf6 {[%clk 0:02:59]} 2. c4 {[%clk 0:03:00.3]} 2...
e6 {[%clk 0:02:59.3]} 3. Nc3 {[%clk 0:02:59.7]} 3... Bb4 {[%clk 0:02:59.1]} 4.
e3 {[%clk 0:02:59.3]} 4... O-O {[%clk 0:02:58.4]} 5. Bd3 {[%clk 0:02:58.6]} 5...
c6 {[%clk 0:02:58.7]} 6. Ne2 {[%clk 0:02:55.3]} 6... d5 {[%clk 0:02:58.1]} 7. a3
{[%clk 0:02:53.1]} 7... Bd6 {[%clk 0:02:57.7]} 8. O-O {[%clk 0:02:47.1]} 8... e5
{[%clk 0:02:55.6]} 9. cxd5 {[%clk 0:02:43.2]} 9... cxd5 {[%clk 0:02:54.6]} 10.
Nb5 {[%clk 0:02:27]} 10... e4 {[%clk 0:02:53]} 11. Bb1 {[%clk 0:02:10.8]} 11...
Bxh2+ {[%clk 0:02:52.7]} 12. Kxh2 {[%clk 0:02:10.1]} 12... Ng4+ {[%clk
0:02:51.1]} 13. Kg3 {[%clk 0:02:09.9]} 13... Qg5 {[%clk 0:02:32.5]} 14. f4
{[%clk 0:01:55.6]} 14... Qg6 {[%clk 0:02:19.4]} 15. f5 {[%clk 0:01:45.3]} 15...
Qg5 {[%clk 0:02:19.5]} 16. Kh3 {[%clk 0:01:09]} 16... Qh5+ {[%clk 0:02:03.8]}
17. Kg3 {[%clk 0:01:08.4]} 17... Qh2+ {[%clk 0:02:04.3]} 18. Kxg4 {[%clk
0:01:08.4]} 18... h5+ {[%clk 0:02:05]} 19. Kg5 {[%clk 0:01:01]} 19... f6+ {[%clk
0:01:56.4]} 0-1

[Event "*** SCC Grand Prix: Titled Tuesday Blitz"]
[Site "Chess.com"]
[Date "2020.10.06"]
[Round "2"]
[White "remi04"]
[Black "S2PAc"]
[Result "1-0"]
[WhiteElo "2549"]
[BlackElo "2780"]
[TimeControl "180+1"]
[EndTime "10:14:27 PDT"]
[Termination "remi04 won by resignation"]

1. e4 {[%clk 0:03:00.9]} 1... c6 {[%clk 0:02:58.3]} 2. c4 {[%clk 0:03:00.3]}
2... d5 {[%clk 0:02:59.2]} 3. exd5 {[%clk 0:03:00.8]} 3... cxd5 {[%clk
0:03:00.1]} 4. cxd5 {[%clk 0:03:01.5]} 4... Nf6 {[%clk 0:03:00.6]} 5. Bb5+
{[%clk 0:03:02]} 5... Bd7 {[%clk 0:02:54.8]} 6. Bc4 {[%clk 0:03:01.6]} 6... g6
{[%clk 0:02:55.2]} 7. Nc3 {[%clk 0:03:00.6]} 7... Bg7 {[%clk 0:02:55.7]} 8. Nf3
{[%clk 0:03:00.8]} 8... O-O {[%clk 0:02:56.2]} 9. O-O {[%clk 0:03:00.7]} 9... a6
{[%clk 0:02:55.3]} 10. a4 {[%clk 0:02:59.2]} 10... b6 {[%clk 0:02:46.5]} 11. h3
{[%clk 0:02:56.8]} 11... Ra7 {[%clk 0:02:39.5]} 12. d4 {[%clk 0:02:51.6]} 12...
Bf5 {[%clk 0:02:38.4]} 13. Re1 {[%clk 0:02:47.9]} 13... Ne8 {[%clk 0:02:05.7]}
14. Ne5 {[%clk 0:02:44.6]} 14... Nd6 {[%clk 0:02:04.3]} 15. Bb3 {[%clk
0:02:41.8]} 15... Rc7 {[%clk 0:02:03.3]} 16. Bf4 {[%clk 0:02:38.4]} 16... f6
{[%clk 0:02:03.5]} 17. Nc6 {[%clk 0:02:32.7]} 17... Nxc6 {[%clk 0:01:39.1]} 18.
dxc6+ {[%clk 0:02:30.2]} 18... Kh8 {[%clk 0:01:21.1]} 19. Nd5 {[%clk 0:02:29.9]}
19... Rxc6 {[%clk 0:01:21.2]} 20. Nxe7 {[%clk 0:02:30]} 20... Rc7 {[%clk
0:01:04.1]} 21. Nxf5 {[%clk 0:02:29.6]} 21... gxf5 {[%clk 0:01:05]} 22. Qh5
{[%clk 0:02:29.5]} 22... Rd7 {[%clk 0:00:53.1]} 23. Be6 {[%clk 0:02:28.9]} 23...
Re7 {[%clk 0:00:52.9]} 24. Bxd6 {[%clk 0:02:19.9]} 24... Qxd6 {[%clk 0:00:52.7]}
25. Bxf5 {[%clk 0:02:20]} 1-0

[Event "*** SCC Grand Prix: Titled Tuesday Blitz"]
[Site "Chess.com"]
[Date "2020.10.06"]
[Round "2"]
[White "bgfbfbgfbgfgf"]
[Black "vladimirdamjanovic"]
[Result "0-1"]
[WhiteElo "2788"]
[BlackElo "2554"]
[TimeControl "180+1"]
[EndTime "10:14:34 PDT"]
[Termination "vladimirdamjanovic won by resignation"]

1. e4 {[%clk 0:03:00.9]} 1... c5 {[%clk 0:02:59.7]} 2. Nf3 {[%clk 0:03:00.4]}
2... d6 {[%clk 0:03:00.2]} 3. d4 {[%clk 0:03:00.6]} 3... cxd4 {[%clk 0:03:00.4]}
4. Nxd4 {[%clk 0:03:01.5]} 4... Nf6 {[%clk 0:03:00.9]} 5. Nc3 {[%clk 0:02:58]}
5... g6 {[%clk 0:03:01.2]} 6. Be3 {[%clk 0:02:53.5]} 6... Bg7 {[%clk 0:03:01.5]}
7. f3 {[%clk 0:02:52.6]} 7... Nc6 {[%clk 0:03:01.6]} 8. Qd2 {[%clk 0:02:49.2]}
8... h5 {[%clk 0:03:01.7]} 9. h4 {[%clk 0:02:38.9]} 9... Bd7 {[%clk 0:03:01.7]}
10. Bc4 {[%clk 0:02:35]} 10... Rc8 {[%clk 0:03:01.6]} 11. Bb3 {[%clk 0:02:34.1]}
11... Na5 {[%clk 0:03:01.5]} 12. O-O-O {[%clk 0:02:26.8]} 12... Nc4 {[%clk
0:03:01.2]} 13. Bxc4 {[%clk 0:02:25.8]} 13... Rxc4 {[%clk 0:03:02.1]} 14. Kb1
{[%clk 0:02:24.3]} 14... Qc7 {[%clk 0:03:01.3]} 15. Nd5 {[%clk 0:02:04.5]} 15...
Nxd5 {[%clk 0:03:00.8]} 16. exd5 {[%clk 0:02:05.4]} 16... O-O {[%clk 0:02:55.9]}
17. c3 {[%clk 0:02:05.2]} 17... Qa5 {[%clk 0:02:51.8]} 18. Bh6 {[%clk
0:01:41.2]} 18... Bxd4 {[%clk 0:02:38.6]} 19. Bxf8 {[%clk 0:01:29.9]} 19... Bf5+
{[%clk 0:02:23.6]} 20. Ka1 {[%clk 0:01:11.3]} 20... Ra4 {[%clk 0:01:59.8]} 0-1

[Event "*** SCC Grand Prix: Titled Tuesday Blitz"]
[Site "Chess.com"]
[Date "2020.10.06"]
[Round "2"]
[White "PSvidler"]
[Black "Gusarov91"]
[Result "1-0"]
[WhiteElo "2900"]
[BlackElo "2577"]
[TimeControl "180+1"]
[EndTime "10:14:41 PDT"]
[Termination "PSvidler won by resignation"]

1. e4 {[%clk 0:03:00.9]} 1... c6 {[%clk 0:02:59.5]} 2. d4 {[%clk 0:02:58.9]}
2... Na6 {[%clk 0:03:00]} 3. Nf3 {[%clk 0:02:55.6]} 3... Nc7 {[%clk 0:03:00.3]}
4. Bd3 {[%clk 0:02:54.2]} 4... d5 {[%clk 0:03:00.7]} 5. h3 {[%clk 0:02:52.6]}
5... dxe4 {[%clk 0:03:00.7]} 6. Bxe4 {[%clk 0:02:52.7]} 6... Nf6 {[%clk
0:03:01.6]} 7. Bd3 {[%clk 0:02:52.5]} 7... g6 {[%clk 0:03:01.4]} 8. O-O {[%clk
0:02:52.4]} 8... Bg7 {[%clk 0:03:02]} 9. c4 {[%clk 0:02:46.8]} 9... O-O {[%clk
0:03:01.7]} 10. Nc3 {[%clk 0:02:46.3]} 10... a5 {[%clk 0:02:57.4]} 11. Re1
{[%clk 0:02:43]} 11... Ne6 {[%clk 0:02:49]} 12. Be3 {[%clk 0:02:41.3]} 12... Qc7
{[%clk 0:02:42.7]} 13. Qc2 {[%clk 0:02:38.2]} 13... Nf4 {[%clk 0:02:42.4]} 14.
Bf1 {[%clk 0:02:34.5]} 14... Bf5 {[%clk 0:02:41.1]} 15. Qd2 {[%clk 0:02:34.3]}
15... Ne6 {[%clk 0:02:20.1]} 16. g4 {[%clk 0:02:26.5]} 16... Ne4 {[%clk
0:02:20.1]} 17. Qc1 {[%clk 0:02:10.2]} 17... Nxc3 {[%clk 0:01:34.1]} 18. gxf5
{[%clk 0:02:09.6]} 18... Ne4 {[%clk 0:01:28.4]} 19. fxe6 {[%clk 0:02:08.8]}
19... fxe6 {[%clk 0:01:28.9]} 20. Qc2 {[%clk 0:02:03.8]} 20... Rxf3 {[%clk
0:01:21.2]} 21. Qxe4 {[%clk 0:02:03.3]} 21... Raf8 {[%clk 0:01:21.9]} 22. Bg2
{[%clk 0:02:00.7]} 22... R3f6 {[%clk 0:01:20.4]} 23. Re2 {[%clk 0:01:59]} 23...
h6 {[%clk 0:01:20]} 24. Rd1 {[%clk 0:01:56]} 24... g5 {[%clk 0:01:19.2]} 25. d5
{[%clk 0:01:54.7]} 25... exd5 {[%clk 0:01:19.3]} 26. cxd5 {[%clk 0:01:54.7]}
26... Rd8 {[%clk 0:01:15.6]} 27. Red2 {[%clk 0:01:53.1]} 27... c5 {[%clk
0:01:13.4]} 28. Qc4 {[%clk 0:01:50.1]} 28... b6 {[%clk 0:01:13.3]} 29. d6+
{[%clk 0:01:50.1]} 1-0

[Event "*** SCC Grand Prix: Titled Tuesday Blitz"]
[Site "Chess.com"]
[Date "2020.10.06"]
[Round "2"]
[White "Koksik_13"]
[Black "Xeniya2005"]
[Result "1-0"]
[WhiteElo "2678"]
[BlackElo "2388"]
[TimeControl "180+1"]
[EndTime "10:14:50 PDT"]
[Termination "Koksik_13 won by resignation"]

1. d4 {[%clk 0:03:00]} 1... Nf6 {[%clk 0:02:59.2]} 2. Nc3 {[%clk 0:02:59.8]}
2... d5 {[%clk 0:02:57.7]} 3. Bf4 {[%clk 0:02:59.9]} 3... e6 {[%clk 0:02:55.6]}
4. Nb5 {[%clk 0:02:59.5]} 4... Na6 {[%clk 0:02:54.4]} 5. e3 {[%clk 0:02:59.3]}
5... c6 {[%clk 0:02:52.6]} 6. Nc3 {[%clk 0:02:59.4]} 6... Nc7 {[%clk 0:02:51.1]}
7. Qf3 {[%clk 0:02:58.7]} 7... Bd6 {[%clk 0:02:42.8]} 8. Bxd6 {[%clk 0:02:58.2]}
8... Qxd6 {[%clk 0:02:40.3]} 9. Qg3 {[%clk 0:02:59.1]} 9... Qxg3 {[%clk
0:02:38.4]} 10. hxg3 {[%clk 0:03:00]} 10... Bd7 {[%clk 0:02:35.7]} 11. Nf3
{[%clk 0:02:59.9]} 11... Ke7 {[%clk 0:02:32.2]} 12. Ne5 {[%clk 0:03:00.1]} 12...
Nce8 {[%clk 0:02:21.6]} 13. Bd3 {[%clk 0:02:57.3]} 13... Nd6 {[%clk 0:02:20]}
14. f3 {[%clk 0:02:54.9]} 14... h5 {[%clk 0:02:15.4]} 15. O-O-O {[%clk
0:02:52.5]} 15... b6 {[%clk 0:01:58.5]} 16. e4 {[%clk 0:02:50.6]} 16... dxe4
{[%clk 0:01:49.6]} 17. fxe4 {[%clk 0:02:51.5]} 17... Rac8 {[%clk 0:01:29.1]} 18.
Rhf1 {[%clk 0:02:49.7]} 18... c5 {[%clk 0:01:09.2]} 19. Nxd7 {[%clk 0:02:32.2]}
19... Nxd7 {[%clk 0:01:06.3]} 20. e5 {[%clk 0:02:31.3]} 20... Nb7 {[%clk
0:01:03.4]} 21. Ba6 {[%clk 0:02:25.1]} 21... Rc7 {[%clk 0:00:54.3]} 22. Nb5
{[%clk 0:02:23.9]} 22... Rhc8 {[%clk 0:00:46.8]} 23. Bxb7 {[%clk 0:02:22.8]}
23... Rxb7 {[%clk 0:00:44.8]} 24. Nd6 {[%clk 0:02:23]} 24... Rcb8 {[%clk
0:00:28.3]} 25. Rxf7+ {[%clk 0:02:22.2]} 1-0